[Event "*** Titled Tuesday Blitz"]
[Site "Chess.com"]
[Date "2020.05.12"]
[Round "1"]
[White "okriak"]
[Black "djano"]
[Result "0-1"]
[WhiteElo "2790"]
[BlackElo "2438"]
[TimeControl "180+1"]
[EndTime "10:08:02 PDT"]
[Termination "djano won by resignation"]

1. Nf3 {[%clk 0:03:00.9]} 1... Nf6 {[%clk 0:02:59.4]} 2. c4 {[%clk 0:03:00.5]}
2... e6 {[%clk 0:02:59.2]} 3. g3 {[%clk 0:02:59.9]} 3... d5 {[%clk 0:02:59.3]}
4. Bg2 {[%clk 0:03:00.2]} 4... Be7 {[%clk 0:02:59.8]} 5. d4 {[%clk 0:02:59.8]}
5... O-O {[%clk 0:02:59.1]} 6. O-O {[%clk 0:02:59.6]} 6... dxc4 {[%clk
0:02:59.5]} 7. Qc2 {[%clk 0:02:59.4]} 7... a6 {[%clk 0:02:59.5]} 8. a4 {[%clk
0:02:59.1]} 8... Bd7 {[%clk 0:02:59.8]} 9. Qxc4 {[%clk 0:02:57.6]} 9... Bc6
{[%clk 0:02:58.9]} 10. Bf4 {[%clk 0:02:55.4]} 10... Nbd7 {[%clk 0:02:51.5]} 11.
Nc3 {[%clk 0:02:51.8]} 11... Bd6 {[%clk 0:02:38.8]} 12. Rfd1 {[%clk 0:02:43.1]}
12... Qe7 {[%clk 0:02:28.9]} 13. Bg5 {[%clk 0:02:37.3]} 13... h6 {[%clk
0:02:27.1]} 14. Bxf6 {[%clk 0:02:37.2]} 14... Nxf6 {[%clk 0:02:28]} 15. e3
{[%clk 0:02:33.7]} 15... Ne4 {[%clk 0:02:17.2]} 16. Ne5 {[%clk 0:02:18.9]} 16...
Bxe5 {[%clk 0:02:09.6]} 17. Bxe4 {[%clk 0:02:18.6]} 17... Bxe4 {[%clk
0:02:01.2]} 18. Nxe4 {[%clk 0:02:17.4]} 18... Bd6 {[%clk 0:02:01.4]} 19. f4
{[%clk 0:02:12.9]} 19... c6 {[%clk 0:02:00.5]} 20. a5 {[%clk 0:01:59.5]} 20...
Rad8 {[%clk 0:01:59.4]} 21. Kg2 {[%clk 0:01:54.5]} 21... Rd7 {[%clk 0:01:56.3]}
22. Rab1 {[%clk 0:01:53.2]} 22... Bb4 {[%clk 0:01:51]} 23. Ra1 {[%clk 0:01:53]}
23... Rfd8 {[%clk 0:01:46.7]} 24. Ra4 {[%clk 0:01:40]} 24... Bd6 {[%clk
0:01:46.8]} 25. b4 {[%clk 0:01:37.8]} 25... Bb8 {[%clk 0:01:36.9]} 26. Ra2
{[%clk 0:01:35.8]} 26... Rd5 {[%clk 0:01:36]} 27. Rad2 {[%clk 0:01:30.6]} 27...
Ba7 {[%clk 0:01:35.9]} 28. Nc5 {[%clk 0:01:28.7]} 28... Bxc5 {[%clk 0:01:30]}
29. bxc5 {[%clk 0:01:26.9]} 29... Qc7 {[%clk 0:01:30.2]} 30. Qb4 {[%clk
0:01:25.2]} 30... R8d7 {[%clk 0:01:28.3]} 31. Rb1 {[%clk 0:01:23.1]} 31... Qd8
{[%clk 0:01:27.2]} 32. Rdb2 {[%clk 0:01:22.2]} 32... Qe7 {[%clk 0:01:05.5]} 33.
Qc3 {[%clk 0:01:21]} 33... f6 {[%clk 0:01:02.4]} 34. Rb4 {[%clk 0:01:20.1]}
34... e5 {[%clk 0:00:59.6]} 35. Re1 {[%clk 0:00:42.8]} 35... Qe6 {[%clk
0:00:55.9]} 36. Qb3 {[%clk 0:00:29.7]} 36... Qf7 {[%clk 0:00:42.1]} 37. dxe5
{[%clk 0:00:26.4]} 37... fxe5 {[%clk 0:00:42.5]} 38. Re2 {[%clk 0:00:25]} 38...
Kh8 {[%clk 0:00:40.4]} 39. e4 {[%clk 0:00:23.3]} 39... Rxc5 {[%clk 0:00:38]} 40.
Qxf7 {[%clk 0:00:20.7]} 40... Rxf7 {[%clk 0:00:38.9]} 41. Reb2 {[%clk
0:00:20.6]} 41... exf4 {[%clk 0:00:38.4]} 42. Rxb7 {[%clk 0:00:20.4]} 42... Rxb7
{[%clk 0:00:37.9]} 43. Rxb7 {[%clk 0:00:20.7]} 43... fxg3 {[%clk 0:00:38]} 44.
hxg3 {[%clk 0:00:21.1]} 44... Rxa5 {[%clk 0:00:38]} 45. Rc7 {[%clk 0:00:21.5]}
45... Rc5 {[%clk 0:00:36.4]} 46. Ra7 {[%clk 0:00:21]} 46... a5 {[%clk
0:00:36.7]} 47. Kf3 {[%clk 0:00:21.7]} 47... Kh7 {[%clk 0:00:36.7]} 48. Ke3
{[%clk 0:00:21.9]} 48... Kg6 {[%clk 0:00:36.5]} 49. Kd4 {[%clk 0:00:22.2]} 49...
Rg5 {[%clk 0:00:35.6]} 50. Ra6 {[%clk 0:00:22.4]} 50... Rxg3 {[%clk 0:00:35]}
51. Rxc6+ {[%clk 0:00:22.7]} 51... Kf7 {[%clk 0:00:34.7]} 52. Kd5 {[%clk
0:00:22.7]} 52... Rd3+ {[%clk 0:00:34]} 53. Ke5 {[%clk 0:00:22.7]} 53... a4
{[%clk 0:00:34.1]} 54. Ra6 {[%clk 0:00:22.3]} 54... a3 {[%clk 0:00:34.5]} 55.
Ra7+ {[%clk 0:00:22.5]} 55... Kg6 {[%clk 0:00:33.7]} 56. Ra6+ {[%clk 0:00:22.5]}
56... Kg5 {[%clk 0:00:33.5]} 57. Ke6 {[%clk 0:00:22.7]} 57... h5 {[%clk
0:00:33.3]} 58. e5 {[%clk 0:00:23.1]} 58... h4 {[%clk 0:00:33.7]} 59. Kf7 {[%clk
0:00:23.3]} 59... h3 {[%clk 0:00:32.1]} 60. Kxg7 {[%clk 0:00:22.6]} 60... h2
{[%clk 0:00:32.3]} 61. Rg6+ {[%clk 0:00:21.8]} 61... Kf5 {[%clk 0:00:26.8]} 62.
Rh6 {[%clk 0:00:21.7]} 62... a2 {[%clk 0:00:26.4]} 63. Rxh2 {[%clk 0:00:21.5]}
63... a1=Q {[%clk 0:00:26.6]} 0-1

[Event "*** Titled Tuesday Blitz"]
[Site "Chess.com"]
[Date "2020.05.12"]
[Round "1"]
[White "profofchess"]
[Black "platy3"]
[Result "1-0"]
[WhiteElo "2415"]
[BlackElo "2738"]
[TimeControl "180+1"]
[EndTime "10:08:02 PDT"]
[Termination "profofchess won by resignation"]

1. e4 {[%clk 0:03:00.9]} 1... c5 {[%clk 0:02:54.7]} 2. Nf3 {[%clk 0:03:00.2]}
2... d6 {[%clk 0:02:55]} 3. c3 {[%clk 0:03:00]} 3... Nf6 {[%clk 0:02:54.8]} 4.
Bc4 {[%clk 0:03:00.6]} 4... e6 {[%clk 0:02:53.4]} 5. Qe2 {[%clk 0:02:59.9]} 5...
Be7 {[%clk 0:02:53.1]} 6. Bb3 {[%clk 0:02:59.6]} 6... O-O {[%clk 0:02:52.9]} 7.
O-O {[%clk 0:02:59.7]} 7... b6 {[%clk 0:02:53]} 8. Rd1 {[%clk 0:02:57.5]} 8...
Bb7 {[%clk 0:02:51.5]} 9. d3 {[%clk 0:02:56.7]} 9... Nbd7 {[%clk 0:02:50.6]} 10.
Nbd2 {[%clk 0:02:56.8]} 10... Qc7 {[%clk 0:02:50.6]} 11. Nf1 {[%clk 0:02:56.7]}
11... Rfe8 {[%clk 0:02:47]} 12. Ng3 {[%clk 0:02:56]} 12... Bf8 {[%clk
0:02:46.2]} 13. d4 {[%clk 0:02:54.8]} 13... Rad8 {[%clk 0:02:29.7]} 14. Bf4
{[%clk 0:02:40.4]} 14... Qb8 {[%clk 0:02:23.3]} 15. a4 {[%clk 0:02:35]} 15...
Qa8 {[%clk 0:02:23.2]} 16. Bc2 {[%clk 0:02:34.1]} 16... cxd4 {[%clk 0:02:19.3]}
17. cxd4 {[%clk 0:02:33.7]} 17... e5 {[%clk 0:02:19.7]} 18. dxe5 {[%clk
0:02:28.5]} 18... dxe5 {[%clk 0:02:17.2]} 19. Bg5 {[%clk 0:02:24.7]} 19... h6
{[%clk 0:02:15.7]} 20. Bxf6 {[%clk 0:02:01.5]} 20... Nxf6 {[%clk 0:02:15.2]} 21.
a5 {[%clk 0:02:00.4]} 21... Bc5 {[%clk 0:02:10.9]} 22. axb6 {[%clk 0:01:50.3]}
22... Bxb6 {[%clk 0:02:10.6]} 23. Nh4 {[%clk 0:01:42.8]} 23... Rxd1+ {[%clk
0:02:03.9]} 24. Rxd1 {[%clk 0:01:41.9]} 24... Rd8 {[%clk 0:02:04.5]} 25. Rxd8+
{[%clk 0:01:33.6]} 25... Qxd8 {[%clk 0:02:03.9]} 26. Nhf5 {[%clk 0:01:34.5]}
26... g6 {[%clk 0:01:58.2]} 27. Nxh6+ {[%clk 0:01:32.2]} 27... Kg7 {[%clk
0:01:58.1]} 28. Ng4 {[%clk 0:01:32.5]} 28... Nxg4 {[%clk 0:01:57.7]} 29. Qxg4
{[%clk 0:01:33.4]} 29... Qd2 {[%clk 0:01:56.9]} 30. Qe2 {[%clk 0:01:29.9]} 30...
Qc1+ {[%clk 0:01:53.3]} 31. Qd1 {[%clk 0:01:21.2]} 31... Qxb2 {[%clk 0:01:52.2]}
32. h4 {[%clk 0:01:21.4]} 32... Qd4 {[%clk 0:01:27]} 33. Qf3 {[%clk 0:01:20.2]}
33... Qd2 {[%clk 0:00:59.8]} 34. Bb3 {[%clk 0:01:19.2]} 34... Qc1+ {[%clk
0:00:54.4]} 35. Kh2 {[%clk 0:01:18.8]} 35... Qf4 {[%clk 0:00:54.1]} 36. Kg1
{[%clk 0:00:52.6]} 36... f5 {[%clk 0:00:48]} 37. Qxf4 {[%clk 0:00:39.4]} 37...
exf4 {[%clk 0:00:48.8]} 38. Ne2 {[%clk 0:00:39.8]} 38... fxe4 {[%clk 0:00:36.4]}
39. Nxf4 {[%clk 0:00:39.5]} 39... e3 {[%clk 0:00:37.1]} 40. Ne6+ {[%clk
0:00:39.3]} 40... Kf6 {[%clk 0:00:36.7]} 41. fxe3 {[%clk 0:00:38.8]} 41... Bxe3+
{[%clk 0:00:36.7]} 42. Kf1 {[%clk 0:00:38.6]} 42... a5 {[%clk 0:00:20.9]} 43.
Ke2 {[%clk 0:00:37.8]} 43... Bb6 {[%clk 0:00:19.8]} 44. g4 {[%clk 0:00:32.8]}
44... Bc6 {[%clk 0:00:19.8]} 45. Kd3 {[%clk 0:00:28.8]} 45... Bb5+ {[%clk
0:00:17]} 46. Ke4 {[%clk 0:00:27.5]} 46... a4 {[%clk 0:00:17.4]} 47. Ba2 {[%clk
0:00:27.3]} 47... Bd7 {[%clk 0:00:16.8]} 48. g5+ {[%clk 0:00:26.4]} 48... Ke7
{[%clk 0:00:17.2]} 49. Nf4 {[%clk 0:00:26.2]} 49... Bf5+ {[%clk 0:00:17.5]} 50.
Kf3 {[%clk 0:00:23.6]} 50... Bc7 {[%clk 0:00:10.8]} 51. h5 {[%clk 0:00:12.1]}
51... Bxf4 {[%clk 0:00:11.1]} 52. Kxf4 {[%clk 0:00:11.8]} 52... Be6 {[%clk
0:00:11.5]} 53. h6 {[%clk 0:00:08.2]} 53... Bg8 {[%clk 0:00:09.9]} 54. Bxg8
{[%clk 0:00:07.3]} 54... Kf8 {[%clk 0:00:09.9]} 55. Ba2 {[%clk 0:00:07.2]} 55...
a3 {[%clk 0:00:09.9]} 56. Ke5 {[%clk 0:00:06.9]} 1-0

[Event "*** Titled Tuesday Blitz"]
[Site "Chess.com"]
[Date "2020.05.12"]
[Round "1"]
[White "Chichin_chao"]
[Black "Aygehovit1992"]
[Result "0-1"]
[WhiteElo "2359"]
[BlackElo "2699"]
[TimeControl "180+1"]
[EndTime "10:08:02 PDT"]
[Termination "Aygehovit1992 won by resignation"]

1. e4 {[%clk 0:03:00.4]} 1... d6 {[%clk 0:02:20.6]} 2. d4 {[%clk 0:02:59.4]}
2... g6 {[%clk 0:02:17.5]} 3. Nc3 {[%clk 0:02:59.3]} 3... Bg7 {[%clk 0:02:16.6]}
4. Nf3 {[%clk 0:02:59.5]} 4... Nf6 {[%clk 0:02:15.8]} 5. Bc4 {[%clk 0:02:59.4]}
5... O-O {[%clk 0:02:15.2]} 6. O-O {[%clk 0:02:59.5]} 6... Bg4 {[%clk
0:02:14.9]} 7. h3 {[%clk 0:02:59.4]} 7... Bxf3 {[%clk 0:02:14.6]} 8. Qxf3 {[%clk
0:02:59.7]} 8... Nc6 {[%clk 0:02:14.8]} 9. Be3 {[%clk 0:02:57.7]} 9... e5 {[%clk
0:02:11.9]} 10. dxe5 {[%clk 0:02:56.1]} 10... Nxe5 {[%clk 0:02:09.5]} 11. Qe2
{[%clk 0:02:56.4]} 11... Nxc4 {[%clk 0:02:10.1]} 12. Qxc4 {[%clk 0:02:57.3]}
12... Re8 {[%clk 0:02:10.8]} 13. f3 {[%clk 0:02:47.5]} 13... d5 {[%clk
0:02:06.6]} 14. Qd3 {[%clk 0:02:25.8]} 14... dxe4 {[%clk 0:01:46.4]} 15. fxe4
{[%clk 0:02:26.7]} 15... Qe7 {[%clk 0:01:40.7]} 16. Qc4 {[%clk 0:01:55.3]} 16...
c6 {[%clk 0:01:24.7]} 17. Bc5 {[%clk 0:01:48.2]} 17... Qe6 {[%clk 0:01:23.4]}
18. Qxe6 {[%clk 0:01:36.6]} 18... Rxe6 {[%clk 0:01:24.3]} 19. Rad1 {[%clk
0:01:36.5]} 19... b6 {[%clk 0:01:18.6]} 20. Bd4 {[%clk 0:01:27.9]} 20... Rae8
{[%clk 0:01:09.8]} 21. e5 {[%clk 0:01:01.3]} 21... Nd7 {[%clk 0:01:04.1]} 22.
Ne4 {[%clk 0:01:00.7]} 22... Nxe5 {[%clk 0:01:01.7]} 23. Ng5 {[%clk 0:00:59]}
23... Rd6 {[%clk 0:00:56.5]} 24. Bxe5 {[%clk 0:00:55.5]} 24... Rxd1 {[%clk
0:00:56.2]} 25. Rxd1 {[%clk 0:00:56.2]} 25... Bxe5 {[%clk 0:00:54.8]} 26. b3
{[%clk 0:00:44.2]} 26... Bg3 {[%clk 0:00:51.1]} 27. Nf3 {[%clk 0:00:39.5]} 27...
Re2 {[%clk 0:00:49.1]} 28. Rd2 {[%clk 0:00:36.1]} 28... Rxd2 {[%clk 0:00:44.2]}
29. Nxd2 {[%clk 0:00:37]} 29... f5 {[%clk 0:00:44.8]} 30. Kf1 {[%clk 0:00:36.8]}
30... Kf7 {[%clk 0:00:44.4]} 31. Ke2 {[%clk 0:00:36.7]} 31... Ke6 {[%clk
0:00:44.8]} 32. Nf3 {[%clk 0:00:34]} 32... h6 {[%clk 0:00:39]} 33. Kd3 {[%clk
0:00:33.7]} 33... c5 {[%clk 0:00:36]} 34. c4 {[%clk 0:00:32.9]} 34... g5 {[%clk
0:00:35.5]} 35. Ke3 {[%clk 0:00:30.7]} 35... Be5 {[%clk 0:00:32]} 36. Ne1 {[%clk
0:00:27.6]} 36... Bd4+ {[%clk 0:00:31.1]} 37. Kf3 {[%clk 0:00:27.9]} 37... h5
{[%clk 0:00:25.2]} 38. Nd3 {[%clk 0:00:24.8]} 38... Be5 {[%clk 0:00:21.5]} 39.
Nf2 {[%clk 0:00:20.2]} 39... g4+ {[%clk 0:00:21.2]} 40. hxg4 {[%clk 0:00:20.3]}
40... hxg4+ {[%clk 0:00:19.9]} 41. Ke2 {[%clk 0:00:20.4]} 41... Bd6 {[%clk
0:00:16.3]} 42. Nd3 {[%clk 0:00:20.4]} 42... Kf6 {[%clk 0:00:16.4]} 43. Ke3
{[%clk 0:00:20.6]} 43... Kg5 {[%clk 0:00:16.5]} 44. Kf2 {[%clk 0:00:19.8]} 44...
f4 {[%clk 0:00:16.2]} 45. Ke2 {[%clk 0:00:20.3]} 45... Kf5 {[%clk 0:00:16.2]}
46. Nf2 {[%clk 0:00:20.5]} 46... Be5 {[%clk 0:00:15.7]} 47. Nd3 {[%clk 0:00:20]}
47... Bd4 {[%clk 0:00:16]} 48. Ne1 {[%clk 0:00:20.2]} 48... Ke4 {[%clk
0:00:15.9]} 49. Nc2 {[%clk 0:00:18.2]} 49... f3+ {[%clk 0:00:15.6]} 50. gxf3+
{[%clk 0:00:18.1]} 50... gxf3+ {[%clk 0:00:16.5]} 51. Kf1 {[%clk 0:00:18.4]}
51... Bc3 {[%clk 0:00:14.6]} 52. Na3 {[%clk 0:00:17.6]} 52... a6 {[%clk
0:00:13]} 53. Nc2 {[%clk 0:00:15.5]} 53... Kd3 {[%clk 0:00:12.9]} 54. Na3 {[%clk
0:00:13.2]} 54... Bb4 {[%clk 0:00:12.8]} 0-1

[Event "*** Titled Tuesday Blitz"]
[Site "Chess.com"]
[Date "2020.05.12"]
[Round "1"]
[White "14Sokol88"]
[Black "Zubrrr"]
[Result "1/2-1/2"]
[WhiteElo "2360"]
[BlackElo "2671"]
[TimeControl "180+1"]
[EndTime "10:08:02 PDT"]
[Termination "Game drawn by repetition"]

1. e4 {[%clk 0:03:00.9]} 1... c5 {[%clk 0:02:58.2]} 2. Nf3 {[%clk 0:02:59.6]}
2... d6 {[%clk 0:02:58.6]} 3. Bb5+ {[%clk 0:02:57.4]} 3... Nd7 {[%clk
0:02:57.9]} 4. d4 {[%clk 0:02:56]} 4... cxd4 {[%clk 0:02:57.8]} 5. Qxd4 {[%clk
0:02:56.7]} 5... e5 {[%clk 0:02:57.5]} 6. Qd3 {[%clk 0:02:53.3]} 6... h6 {[%clk
0:02:57.8]} 7. Nfd2 {[%clk 0:02:49.2]} 7... Nf6 {[%clk 0:02:52.7]} 8. Nc4 {[%clk
0:02:45.4]} 8... Qc7 {[%clk 0:02:51.3]} 9. Nc3 {[%clk 0:02:40.5]} 9... Be7
{[%clk 0:02:50.2]} 10. O-O {[%clk 0:02:35.6]} 10... O-O {[%clk 0:02:49.2]} 11.
Bxd7 {[%clk 0:02:35]} 11... Bxd7 {[%clk 0:02:45.8]} 12. Ne3 {[%clk 0:02:34.2]}
12... Be6 {[%clk 0:02:32.5]} 13. Rd1 {[%clk 0:02:29.7]} 13... a6 {[%clk
0:02:29.4]} 14. a4 {[%clk 0:02:28]} 14... Rfe8 {[%clk 0:02:20.6]} 15. Bd2 {[%clk
0:02:26.9]} 15... Bf8 {[%clk 0:02:19.4]} 16. Be1 {[%clk 0:02:25.7]} 16... Rac8
{[%clk 0:02:16.7]} 17. a5 {[%clk 0:02:20.2]} 17... Qc5 {[%clk 0:01:40]} 18. f3
{[%clk 0:01:55.3]} 18... d5 {[%clk 0:01:33.8]} 19. exd5 {[%clk 0:01:54.2]} 19...
Nxd5 {[%clk 0:01:22.4]} 20. Nxd5 {[%clk 0:01:52.4]} 20... Bxd5 {[%clk
0:01:22.8]} 21. Qxd5 {[%clk 0:01:46.3]} 21... Qxe3+ {[%clk 0:01:22.5]} 22. Bf2
{[%clk 0:01:46.7]} 22... Qg5 {[%clk 0:01:19.5]} 23. Qd2 {[%clk 0:01:41.3]} 23...
Qg6 {[%clk 0:01:12.7]} 24. c3 {[%clk 0:01:39.9]} 24... e4 {[%clk 0:01:08.5]} 25.
fxe4 {[%clk 0:01:37.3]} 25... Rxe4 {[%clk 0:01:09.4]} 26. Re1 {[%clk 0:01:30.8]}
26... Rce8 {[%clk 0:01:05]} 27. Rxe4 {[%clk 0:01:30]} 27... Rxe4 {[%clk
0:01:04.5]} 28. Re1 {[%clk 0:01:29.7]} 28... Rxe1+ {[%clk 0:00:57.5]} 29. Bxe1
{[%clk 0:01:28.6]} 29... Bc5+ {[%clk 0:00:56]} 30. Kf1 {[%clk 0:01:15.9]} 30...
Qf5+ {[%clk 0:00:53.5]} 31. Ke2 {[%clk 0:01:14.5]} 31... Qh5+ {[%clk 0:00:50.8]}
32. Kf1 {[%clk 0:01:05.3]} 32... Qxh2 {[%clk 0:00:50.1]} 33. Qd8+ {[%clk
0:00:56.8]} 33... Kh7 {[%clk 0:00:49.6]} 34. Qd3+ {[%clk 0:00:55.2]} 34... g6
{[%clk 0:00:49.6]} 35. Qd5 {[%clk 0:00:53.7]} 35... Qf4+ {[%clk 0:00:34.2]} 36.
Ke2 {[%clk 0:00:52.8]} 36... Qg4+ {[%clk 0:00:34.3]} 37. Kd3 {[%clk 0:00:42]}
37... Qd1+ {[%clk 0:00:32.8]} 38. Bd2 {[%clk 0:00:41.6]} 38... Qf1+ {[%clk
0:00:25.8]} 39. Kc2 {[%clk 0:00:33.7]} 39... Qf5+ {[%clk 0:00:25.5]} 40. Qxf5
{[%clk 0:00:33.5]} 40... gxf5 {[%clk 0:00:26.4]} 41. b4 {[%clk 0:00:28.6]} 41...
Bf2 {[%clk 0:00:20.6]} 42. Kd3 {[%clk 0:00:27.5]} 42... h5 {[%clk 0:00:20.7]}
43. Ke2 {[%clk 0:00:22.5]} 43... Bg3 {[%clk 0:00:20]} 44. Kf3 {[%clk 0:00:21.8]}
44... Be5 {[%clk 0:00:19.6]} 45. c4 {[%clk 0:00:20.2]} 45... Kg6 {[%clk
0:00:19.7]} 46. b5 {[%clk 0:00:18.3]} 46... Kf6 {[%clk 0:00:19.9]} 47. Ke3
{[%clk 0:00:15.8]} 47... Ke6 {[%clk 0:00:19.5]} 48. Kd3 {[%clk 0:00:14.9]} 48...
Kd7 {[%clk 0:00:15.7]} 49. Bb4 {[%clk 0:00:14]} 49... Ke6 {[%clk 0:00:12.7]} 50.
Ke3 {[%clk 0:00:11.8]} 50... Kd7 {[%clk 0:00:07.2]} 51. Kd3 {[%clk 0:00:11.1]}
51... Ke6 {[%clk 0:00:07.3]} 52. Ke3 {[%clk 0:00:10.4]} 52... Kd7 {[%clk
0:00:06.2]} 53. Kd3 {[%clk 0:00:09.6]} 1/2-1/2

[Event "*** Titled Tuesday Blitz"]
[Site "Chess.com"]
[Date "2020.05.12"]
[Round "1"]
[White "bugsbunny444"]
[Black "Msb2"]
[Result "0-1"]
[WhiteElo "2448"]
[BlackElo "2904"]
[TimeControl "180+1"]
[EndTime "10:08:04 PDT"]
[Termination "Msb2 won by resignation"]

1. Nf3 {[%clk 0:03:00.9]} 1... d5 {[%clk 0:02:59.9]} 2. c4 {[%clk 0:03:01]} 2...
d4 {[%clk 0:02:59.4]} 3. b4 {[%clk 0:03:00]} 3... c5 {[%clk 0:03:00.3]} 4. g3
{[%clk 0:02:59.6]} 4... Nf6 {[%clk 0:02:55.2]} 5. Bg2 {[%clk 0:02:57.7]} 5... a5
{[%clk 0:02:55.5]} 6. b5 {[%clk 0:02:56]} 6... Nbd7 {[%clk 0:02:55.6]} 7. O-O
{[%clk 0:02:53.3]} 7... e5 {[%clk 0:02:55.7]} 8. d3 {[%clk 0:02:53.9]} 8... Bd6
{[%clk 0:02:54.5]} 9. a4 {[%clk 0:02:47.3]} 9... O-O {[%clk 0:02:54.1]} 10. Ra2
{[%clk 0:02:47.5]} 10... Ra7 {[%clk 0:02:50.5]} 11. Re1 {[%clk 0:02:39]} 11...
b6 {[%clk 0:02:49.4]} 12. e3 {[%clk 0:02:39.3]} 12... Bb7 {[%clk 0:02:47.9]} 13.
Rae2 {[%clk 0:02:30.4]} 13... Qc7 {[%clk 0:02:44.1]} 14. Nbd2 {[%clk 0:02:06.7]}
14... Raa8 {[%clk 0:02:30.6]} 15. Ba3 {[%clk 0:01:46.9]} 15... Rae8 {[%clk
0:02:18.7]} 16. exd4 {[%clk 0:01:31.7]} 16... cxd4 {[%clk 0:02:13.2]} 17. Bxd6
{[%clk 0:01:14]} 17... Qxd6 {[%clk 0:02:14.1]} 18. Nxe5 {[%clk 0:00:55.8]} 18...
Nxe5 {[%clk 0:02:05.7]} 19. Bxb7 {[%clk 0:00:54.9]} 19... Nxd3 {[%clk 0:02:06]}
20. Rxe8 {[%clk 0:00:42.8]} 20... Nxe8 {[%clk 0:02:03.6]} 21. Re2 {[%clk
0:00:16.2]} 21... Nf6 {[%clk 0:02:00]} 22. Ne4 {[%clk 0:00:14.8]} 22... Nxe4
{[%clk 0:01:59.4]} 23. Rxe4 {[%clk 0:00:07]} 23... Qa3 {[%clk 0:01:39.6]} 24.
Bd5 {[%clk 0:00:04.5]} 24... Nc5 {[%clk 0:01:35.3]} 25. Rxd4 {[%clk 0:00:04.4]}
25... Qxa4 {[%clk 0:01:33.6]} 26. Qxa4 {[%clk 0:00:03.4]} 26... Nxa4 {[%clk
0:01:34.5]} 27. Rf4 {[%clk 0:00:04.2]} 27... Nc5 {[%clk 0:01:34.4]} 28. g4
{[%clk 0:00:02.3]} 28... a4 {[%clk 0:01:34.5]} 29. Rf3 {[%clk 0:00:02.7]} 29...
g6 {[%clk 0:01:32.4]} 30. g5 {[%clk 0:00:03.2]} 30... Kg7 {[%clk 0:01:33]} 31.
h4 {[%clk 0:00:03.3]} 31... f6 {[%clk 0:01:31.8]} 32. gxf6+ {[%clk 0:00:01.9]}
32... Rxf6 {[%clk 0:01:32.7]} 33. Re3 {[%clk 0:00:02.2]} 33... Kh6 {[%clk
0:01:28]} 34. Re7 {[%clk 0:00:02.7]} 34... Rf4 {[%clk 0:01:17.5]} 35. h5 {[%clk
0:00:03.2]} 35... gxh5 {[%clk 0:01:15.2]} 36. Ra7 {[%clk 0:00:03.1]} 36... Rf6
{[%clk 0:01:14.3]} 37. Kg2 {[%clk 0:00:02.7]} 37... h4 {[%clk 0:01:14.9]} 38.
Kh3 {[%clk 0:00:02.8]} 38... Rxf2 {[%clk 0:01:15]} 39. Kxh4 {[%clk 0:00:03.3]}
39... Kg6 {[%clk 0:01:13.1]} 40. Kg3 {[%clk 0:00:02.8]} 40... Ra2 {[%clk
0:01:12.6]} 41. Ra8 {[%clk 0:00:03]} 41... a3 {[%clk 0:01:12.7]} 42. Kf4 {[%clk
0:00:03.3]} 42... Ra1 {[%clk 0:01:12.9]} 43. Ke5 {[%clk 0:00:03.4]} 43... a2
{[%clk 0:01:12.5]} 44. Kd6 {[%clk 0:00:04]} 44... Nb3 {[%clk 0:00:46.5]} 45. c5
{[%clk 0:00:03.9]} 45... Nxc5 {[%clk 0:00:46]} 46. Rxa2 {[%clk 0:00:02.7]} 46...
Rf1 {[%clk 0:00:41.9]} 47. Kc6 {[%clk 0:00:02.9]} 47... Rf6+ {[%clk 0:00:42]}
48. Kc7 {[%clk 0:00:03.4]} 48... h5 {[%clk 0:00:42.7]} 49. Rg2+ {[%clk
0:00:02.3]} 49... Kh6 {[%clk 0:00:42.6]} 50. Rh2 {[%clk 0:00:03.2]} 50... Kg5
{[%clk 0:00:42.6]} 51. Bc6 {[%clk 0:00:03.4]} 51... Na4 {[%clk 0:00:41.6]} 52.
Ra2 {[%clk 0:00:03.4]} 52... Rf4 {[%clk 0:00:41.9]} 53. Kb7 {[%clk 0:00:03.1]}
53... h4 {[%clk 0:00:42.1]} 54. Bd7 {[%clk 0:00:03.3]} 54... Nc5+ {[%clk
0:00:40.8]} 55. Kc7 {[%clk 0:00:03.7]} 55... Rf7 {[%clk 0:00:39.8]} 56. Rg2+
{[%clk 0:00:03.8]} 56... Kh5 {[%clk 0:00:39.1]} 57. Rd2 {[%clk 0:00:03.7]} 57...
Rxd7+ {[%clk 0:00:36.6]} 58. Rxd7 {[%clk 0:00:04.6]} 58... Nxd7 {[%clk
0:00:37.5]} 59. Kxd7 {[%clk 0:00:05.5]} 59... h3 {[%clk 0:00:38.2]} 60. Kc6
{[%clk 0:00:06]} 60... h2 {[%clk 0:00:39.1]} 61. Kxb6 {[%clk 0:00:06.6]} 61...
h1=Q {[%clk 0:00:40]} 62. Kc7 {[%clk 0:00:07.2]} 0-1